[Event "Early-Titled-Tuesday-Blitz-May-14-2024"]
[Site "Chess.com"]
[Date "2024.05.14"]
[Round "7"]
[White "RojonR"]
[Black "Happy1712Drummer"]
[Result "1-0"]
[WhiteElo "2612"]
[BlackElo "2445"]
[TimeControl "180+1"]
[EndTime "9:19:14 PDT"]
[Termination "RojonR won on time"]

1. e4 {[%clk 0:03:00.9]} 1... c5 {[%clk 0:02:59.5]} 2. Nf3 {[%clk 0:03:00.2]}
2... e6 {[%clk 0:02:59.4]} 3. d4 {[%clk 0:02:59.8]} 3... cxd4 {[%clk 0:03:00.3]}
4. Nxd4 {[%clk 0:03:00.6]} 4... Nf6 {[%clk 0:02:58.8]} 5. Nc3 {[%clk 0:03:01]}
5... Nc6 {[%clk 0:02:59.1]} 6. Ndb5 {[%clk 0:03:00.5]} 6... Bc5 {[%clk
0:02:57.2]} 7. Nd6+ {[%clk 0:02:55.1]} 7... Ke7 {[%clk 0:02:56.1]} 8. Bf4 {[%clk
0:02:43.3]} 8... e5 {[%clk 0:02:56.3]} 9. Nf5+ {[%clk 0:02:41.7]} 9... Kf8
{[%clk 0:02:56.2]} 10. Bg5 {[%clk 0:02:38.6]} 10... d6 {[%clk 0:02:55.6]} 11.
Bc4 {[%clk 0:02:32.5]} 11... Be6 {[%clk 0:02:53.7]} 12. Bb3 {[%clk 0:02:08.4]}
12... h6 {[%clk 0:02:21.7]} 13. Bxf6 {[%clk 0:02:07]} 13... Qxf6 {[%clk
0:02:21.4]} 14. Nd5 {[%clk 0:01:57.7]} 14... Bxd5 {[%clk 0:02:11.4]} 15. Qxd5
{[%clk 0:01:48.8]} 15... g6 {[%clk 0:02:07.2]} 16. Ne3 {[%clk 0:01:48.4]} 16...
Bxe3 {[%clk 0:02:02]} 17. fxe3 {[%clk 0:01:49.3]} 17... Qe7 {[%clk 0:01:27.4]}
18. O-O {[%clk 0:01:47.3]} 18... Rh7 {[%clk 0:01:19.4]} 19. Rad1 {[%clk
0:01:40.4]} 19... Rd8 {[%clk 0:01:19.3]} 20. Rf2 {[%clk 0:01:38.1]} 20... Kg8
{[%clk 0:01:12.5]} 21. Rdf1 {[%clk 0:01:34.8]} 21... Rd7 {[%clk 0:01:07.1]} 22.
Rf6 {[%clk 0:01:35.2]} 22... Rg7 {[%clk 0:00:59.9]} 23. h4 {[%clk 0:01:23.7]}
23... Kh7 {[%clk 0:00:52.4]} 24. h5 {[%clk 0:01:02.1]} 24... g5 {[%clk
0:00:22.3]} 25. Qd1 {[%clk 0:01:02.4]} 25... Nd8 {[%clk 0:00:20.3]} 26. Qg4
{[%clk 0:01:00.5]} 26... Ne6 {[%clk 0:00:03.3]} 27. Qf5+ {[%clk 0:00:59.2]}
27... Kg8 {[%clk 0:00:03.7]} 28. Rxh6 {[%clk 0:00:44.7]} 28... Nc5 {[%clk
0:00:03.3]} 29. Bd5 {[%clk 0:00:43.4]} 29... g4 {[%clk 0:00:01.8]} 30. Rf6
{[%clk 0:00:42.6]} 30... b6 {[%clk 0:00:00.7]} 31. h6 {[%clk 0:00:42.8]} 31...
Rh7 {[%clk 0:00:00.5]} 32. Qg6+ {[%clk 0:00:39.6]} 1-0

[Event "Early-Titled-Tuesday-Blitz-May-14-2024"]
[Site "Chess.com"]
[Date "2024.05.14"]
[Round "7"]
[White "kritipatel"]
[Black "talaicito"]
[Result "0-1"]
[WhiteElo "2161"]
[BlackElo "2365"]
[TimeControl "180+1"]
[EndTime "9:19:18 PDT"]
[Termination "talaicito won by resignation"]

1. d4 {[%clk 0:03:00.9]} 1... e6 {[%clk 0:02:59.9]} 2. c4 {[%clk 0:03:00.8]}
2... f5 {[%clk 0:03:00.5]} 3. Nc3 {[%clk 0:02:59.4]} 3... Nf6 {[%clk 0:03:01]}
4. f3 {[%clk 0:02:58.7]} 4... Bb4 {[%clk 0:03:01.4]} 5. Bd2 {[%clk 0:02:58.2]}
5... O-O {[%clk 0:02:56]} 6. e3 {[%clk 0:02:57]} 6... d6 {[%clk 0:02:55.5]} 7.
Bd3 {[%clk 0:02:56.9]} 7... e5 {[%clk 0:02:54.8]} 8. Nge2 {[%clk 0:02:50.5]}
8... a5 {[%clk 0:02:49.4]} 9. O-O {[%clk 0:02:47.7]} 9... Nc6 {[%clk 0:02:43.9]}
10. d5 {[%clk 0:02:46.8]} 10... Nb8 {[%clk 0:02:37.9]} 11. e4 {[%clk 0:02:42.6]}
11... Bc5+ {[%clk 0:02:29.7]} 12. Kh1 {[%clk 0:02:41.5]} 12... f4 {[%clk
0:02:30.2]} 13. a3 {[%clk 0:02:36]} 13... Nh5 {[%clk 0:02:28.7]} 14. Rb1 {[%clk
0:02:32.7]} 14... Rf6 {[%clk 0:02:24]} 15. b4 {[%clk 0:02:25.9]} 15... Ba7
{[%clk 0:02:12.7]} 16. Nb5 {[%clk 0:02:19.9]} 16... Bb6 {[%clk 0:02:11.1]} 17.
Qc2 {[%clk 0:02:10.6]} 17... axb4 {[%clk 0:01:55]} 18. axb4 {[%clk 0:02:09.7]}
18... Na6 {[%clk 0:01:53.1]} 19. Bc3 {[%clk 0:01:46.5]} 19... Rh6 {[%clk
0:01:51.4]} 20. c5 {[%clk 0:01:43.1]} 20... Nxc5 {[%clk 0:01:40.8]} 21. bxc5
{[%clk 0:01:37.9]} 21... Ng3+ {[%clk 0:01:29.4]} 22. Nxg3 {[%clk 0:01:34.6]}
22... Rxh2+ {[%clk 0:01:23.7]} 23. Kxh2 {[%clk 0:00:58.9]} 23... Qh4+ {[%clk
0:01:21.1]} 24. Kg1 {[%clk 0:00:59.2]} 24... fxg3 {[%clk 0:01:19.4]} 25. Rfc1
{[%clk 0:00:48.7]} 25... Bxc5+ {[%clk 0:01:05.4]} 26. Bd4 {[%clk 0:00:39.2]}
26... exd4 {[%clk 0:00:49.4]} 27. Nxc7 {[%clk 0:00:28.8]} 27... Ra2 {[%clk
0:00:47.9]} 28. Rb2 {[%clk 0:00:14.9]} 28... Rxb2 {[%clk 0:00:45.3]} 29. Qxb2
{[%clk 0:00:15.6]} 29... Qh2+ {[%clk 0:00:45]} 30. Kf1 {[%clk 0:00:16.2]} 30...
Qh1+ {[%clk 0:00:45.3]} 31. Ke2 {[%clk 0:00:16.6]} 31... Qxg2+ {[%clk
0:00:45.3]} 32. Kd1 {[%clk 0:00:16.1]} 32... Qxb2 {[%clk 0:00:45.2]} 33. Bc2
{[%clk 0:00:11.7]} 33... g2 {[%clk 0:00:40.9]} 34. Kd2 {[%clk 0:00:11.6]} 34...
d3 {[%clk 0:00:39.3]} 0-1

[Event "Early-Titled-Tuesday-Blitz-May-14-2024"]
[Site "Chess.com"]
[Date "2024.05.14"]
[Round "7"]
[White "SAInt_666"]
[Black "KuzubovYuriy"]
[Result "1/2-1/2"]
[WhiteElo "2801"]
[BlackElo "2935"]
[TimeControl "180+1"]
[EndTime "9:19:19 PDT"]
[Termination "Game drawn by repetition"]

1. e4 {[%clk 0:03:00.9]} 1... c5 {[%clk 0:03:00]} 2. Nf3 {[%clk 0:03:00.6]} 2...
Nc6 {[%clk 0:03:00.7]} 3. Bb5 {[%clk 0:03:00.1]} 3... d6 {[%clk 0:03:00.8]} 4.
O-O {[%clk 0:02:58.4]} 4... Bd7 {[%clk 0:03:01.5]} 5. c3 {[%clk 0:02:58.6]} 5...
a6 {[%clk 0:03:00.9]} 6. Bxc6 {[%clk 0:02:55.4]} 6... Bxc6 {[%clk 0:03:01.8]} 7.
Re1 {[%clk 0:02:54.8]} 7... Nf6 {[%clk 0:02:58.6]} 8. d4 {[%clk 0:02:54.7]} 8...
cxd4 {[%clk 0:02:55]} 9. cxd4 {[%clk 0:02:55.6]} 9... Bxe4 {[%clk 0:02:54.9]}
10. Bg5 {[%clk 0:02:55.3]} 10... d5 {[%clk 0:02:46.2]} 11. Nc3 {[%clk
0:02:53.5]} 11... e6 {[%clk 0:02:14.3]} 12. Bxf6 {[%clk 0:02:47.8]} 12... gxf6
{[%clk 0:02:02.8]} 13. Nxe4 {[%clk 0:02:47.5]} 13... dxe4 {[%clk 0:02:03.7]} 14.
Rxe4 {[%clk 0:02:47.9]} 14... Bg7 {[%clk 0:01:59.6]} 15. d5 {[%clk 0:02:41.8]}
15... f5 {[%clk 0:01:56.7]} 16. Re2 {[%clk 0:02:40.5]} 16... O-O {[%clk
0:01:49.4]} 17. dxe6 {[%clk 0:02:38.1]} 17... Qxd1+ {[%clk 0:01:46.7]} 18. Rxd1
{[%clk 0:02:39]} 18... fxe6 {[%clk 0:01:44.5]} 19. Rxe6 {[%clk 0:02:38.3]} 19...
Rad8 {[%clk 0:01:37.3]} 20. Rxd8 {[%clk 0:01:49.1]} 20... Rxd8 {[%clk
0:01:38.2]} 21. g3 {[%clk 0:01:49.5]} 21... Bxb2 {[%clk 0:01:37.6]} 22. Rb6
{[%clk 0:01:49.3]} 22... Ba3 {[%clk 0:01:38.3]} 23. Rxb7 {[%clk 0:01:49.5]}
23... Rd5 {[%clk 0:01:24.3]} 24. Ra7 {[%clk 0:01:44.7]} 24... a5 {[%clk
0:01:22.6]} 25. Kg2 {[%clk 0:01:41.3]} 25... Bb4 {[%clk 0:01:19.4]} 26. h3
{[%clk 0:01:24.3]} 26... h5 {[%clk 0:01:03.7]} 27. Nh4 {[%clk 0:01:13.4]} 27...
Rd2 {[%clk 0:00:56.3]} 28. Nxf5 {[%clk 0:01:03.7]} 28... Rxa2 {[%clk 0:00:48.2]}
29. Ne7+ {[%clk 0:00:57.1]} 29... Kf8 {[%clk 0:00:41.2]} 30. Nc6 {[%clk
0:00:31.6]} 30... Bc5 {[%clk 0:00:36.8]} 31. Rxa5 {[%clk 0:00:20.5]} 31... Rxf2+
{[%clk 0:00:36]} 32. Kh1 {[%clk 0:00:20.7]} 32... Rf1+ {[%clk 0:00:30.7]} 33.
Kg2 {[%clk 0:00:21.1]} 33... Rf2+ {[%clk 0:00:31.1]} 34. Kh1 {[%clk 0:00:21.5]}
34... Rf1+ {[%clk 0:00:20]} 35. Kg2 {[%clk 0:00:21.3]} 35... Rf2+ {[%clk
0:00:20.9]} 1/2-1/2

[Event "Early-Titled-Tuesday-Blitz-May-14-2024"]
[Site "Chess.com"]
[Date "2024.05.14"]
[Round "7"]
[White "laysa_latifah"]
[Black "average_trans"]
[Result "0-1"]
[WhiteElo "2528"]
[BlackElo "2359"]
[TimeControl "180+1"]
[EndTime "9:19:19 PDT"]
[Termination "average_trans won by resignation"]

1. e4 {[%clk 0:03:00.9]} 1... a6 {[%clk 0:02:57.4]} 2. Nf3 {[%clk 0:02:59.5]}
2... b5 {[%clk 0:02:57.5]} 3. d4 {[%clk 0:02:59.3]} 3... Bb7 {[%clk 0:02:57.7]}
4. Bd3 {[%clk 0:03:00]} 4... Nf6 {[%clk 0:02:57.2]} 5. e5 {[%clk 0:03:00]} 5...
Nd5 {[%clk 0:02:57.3]} 6. O-O {[%clk 0:03:00.3]} 6... e6 {[%clk 0:02:57]} 7. c3
{[%clk 0:02:59.6]} 7... Be7 {[%clk 0:02:55.5]} 8. Qc2 {[%clk 0:02:58.3]} 8... h6
{[%clk 0:02:54.9]} 9. a4 {[%clk 0:02:57.9]} 9... c6 {[%clk 0:02:52.7]} 10. Nbd2
{[%clk 0:02:56]} 10... O-O {[%clk 0:02:49.8]} 11. Ne4 {[%clk 0:02:56]} 11... d6
{[%clk 0:02:47.9]} 12. exd6 {[%clk 0:02:53.6]} 12... Bxd6 {[%clk 0:02:48.1]} 13.
Nxd6 {[%clk 0:02:53.9]} 13... Qxd6 {[%clk 0:02:47.7]} 14. Nd2 {[%clk 0:02:54.5]}
14... f5 {[%clk 0:02:44.9]} 15. Re1 {[%clk 0:02:51.9]} 15... Nf4 {[%clk
0:02:42.8]} 16. Nf3 {[%clk 0:02:51.3]} 16... c5 {[%clk 0:02:40.4]} 17. Bxf4
{[%clk 0:02:11.6]} 17... Qxf4 {[%clk 0:02:41.3]} 18. Be2 {[%clk 0:02:07.4]}
18... Nd7 {[%clk 0:02:29.2]} 19. axb5 {[%clk 0:02:00.4]} 19... axb5 {[%clk
0:02:27.5]} 20. dxc5 {[%clk 0:02:00.6]} 20... Nxc5 {[%clk 0:02:25.2]} 21. Nd4
{[%clk 0:01:59.6]} 21... e5 {[%clk 0:02:13.9]} 22. Nxb5 {[%clk 0:01:58.1]} 22...
Rxa1 {[%clk 0:02:12.6]} 23. Rxa1 {[%clk 0:01:57.6]} 23... Be4 {[%clk 0:02:12.6]}
24. Bc4+ {[%clk 0:01:54.2]} 24... Kh7 {[%clk 0:02:09.6]} 25. Qe2 {[%clk
0:01:53.7]} 25... Rd8 {[%clk 0:01:50]} 26. g3 {[%clk 0:01:19.7]} 26... Qd2
{[%clk 0:01:30.1]} 27. b4 {[%clk 0:00:54.6]} 27... Nb3 {[%clk 0:01:20.3]} 28.
Qxd2 {[%clk 0:00:50]} 28... Nxd2 {[%clk 0:01:21.2]} 29. Be2 {[%clk 0:00:47.9]}
29... f4 {[%clk 0:01:09.8]} 30. Rd1 {[%clk 0:00:40.6]} 30... f3 {[%clk
0:00:55.1]} 31. Bf1 {[%clk 0:00:39.3]} 31... Bc2 {[%clk 0:00:51.1]} 32. Rc1
{[%clk 0:00:39]} 32... Nxf1 {[%clk 0:00:45.7]} 33. Rxf1 {[%clk 0:00:38.7]} 33...
Rd2 {[%clk 0:00:35]} 34. Na3 {[%clk 0:00:33.8]} 34... Bd3 {[%clk 0:00:34.9]} 35.
Re1 {[%clk 0:00:33.7]} 35... e4 {[%clk 0:00:33.9]} 36. Ra1 {[%clk 0:00:29.9]}
36... e3 {[%clk 0:00:31.3]} 0-1

[Event "Early-Titled-Tuesday-Blitz-May-14-2024"]
[Site "Chess.com"]
[Date "2024.05.14"]
[Round "7"]
[White "AniJak"]
[Black "Arteler"]
[Result "1-0"]
[WhiteElo "2394"]
[BlackElo "2231"]
[TimeControl "180+1"]
[EndTime "9:19:19 PDT"]
[Termination "AniJak won by checkmate"]

1. e4 {[%clk 0:03:00.9]} 1... e5 {[%clk 0:03:00.1]} 2. Nf3 {[%clk 0:03:00.2]}
2... d6 {[%clk 0:03:00.7]} 3. d4 {[%clk 0:02:59.9]} 3... exd4 {[%clk 0:03:01.6]}
4. Qxd4 {[%clk 0:03:00.1]} 4... Nf6 {[%clk 0:03:02.2]} 5. Nc3 {[%clk 0:02:57.5]}
5... Be7 {[%clk 0:03:02.7]} 6. Bc4 {[%clk 0:02:49]} 6... O-O {[%clk 0:03:02.6]}
7. O-O {[%clk 0:02:46.1]} 7... Nc6 {[%clk 0:02:59]} 8. Qd1 {[%clk 0:02:44.4]}
8... Be6 {[%clk 0:02:46.7]} 9. Bb3 {[%clk 0:02:29.7]} 9... Bg4 {[%clk
0:02:43.8]} 10. h3 {[%clk 0:02:24.2]} 10... Bh5 {[%clk 0:02:43.2]} 11. Qd3
{[%clk 0:02:13.6]} 11... Bg6 {[%clk 0:02:26.1]} 12. Re1 {[%clk 0:02:06]} 12...
Ne5 {[%clk 0:02:08.7]} 13. Qe3 {[%clk 0:01:53.1]} 13... Qd7 {[%clk 0:01:41.7]}
14. Rd1 {[%clk 0:01:47.2]} 14... Nxf3+ {[%clk 0:01:31.6]} 15. Qxf3 {[%clk
0:01:45.8]} 15... Rfe8 {[%clk 0:01:29.6]} 16. e5 {[%clk 0:01:22]} 16... Bh5
{[%clk 0:00:32.6]} 17. g4 {[%clk 0:01:20.7]} 17... Nxg4 {[%clk 0:00:25.4]} 18.
hxg4 {[%clk 0:01:20.9]} 18... Bxg4 {[%clk 0:00:26.3]} 19. Qxf7+ {[%clk
0:01:20.6]} 19... Kh8 {[%clk 0:00:27]} 20. e6 {[%clk 0:01:17.8]} 20... Qc6
{[%clk 0:00:20]} 21. Bd5 {[%clk 0:01:13.5]} 21... Qc5 {[%clk 0:00:14]} 22. Be3
{[%clk 0:01:12]} 22... Qb4 {[%clk 0:00:13.7]} 23. Bd4 {[%clk 0:00:54.6]} 23...
Rg8 {[%clk 0:00:05.7]} 24. Qxe7 {[%clk 0:00:51.2]} 24... Bxd1 {[%clk 0:00:06.3]}
25. Rxd1 {[%clk 0:00:50.8]} 25... Rae8 {[%clk 0:00:06.9]} 26. Qxc7 {[%clk
0:00:45.2]} 26... b6 {[%clk 0:00:04.7]} 27. e7 {[%clk 0:00:41.9]} 27... Qxb2
{[%clk 0:00:01.7]} 28. Bxg8 {[%clk 0:00:36.9]} 28... Rxg8 {[%clk 0:00:02.6]} 29.
Qd8 {[%clk 0:00:34]} 29... Qb5 {[%clk 0:00:01.1]} 30. Nxb5 {[%clk 0:00:29.6]}
30... Rxd8 {[%clk 0:00:01.2]} 31. exd8=Q# {[%clk 0:00:28.1]} 1-0

[Event "Early-Titled-Tuesday-Blitz-May-14-2024"]
[Site "Chess.com"]
[Date "2024.05.14"]
[Round "7"]
[White "SaiHanThiha"]
[Black "profedechess93"]
[Result "1-0"]
[WhiteElo "2476"]
[BlackElo "2634"]
[TimeControl "180+1"]
[EndTime "9:19:21 PDT"]
[Termination "SaiHanThiha won by resignation"]

1. e4 {[%clk 0:02:58.8]} 1... e6 {[%clk 0:03:00]} 2. d4 {[%clk 0:02:58]} 2... d5
{[%clk 0:02:59.2]} 3. Nd2 {[%clk 0:02:58.9]} 3... Be7 {[%clk 0:02:58.7]} 4. Ngf3
{[%clk 0:02:53.8]} 4... Nf6 {[%clk 0:02:58.8]} 5. Bd3 {[%clk 0:02:39.9]} 5... c5
{[%clk 0:02:58.6]} 6. dxc5 {[%clk 0:02:37.4]} 6... Nc6 {[%clk 0:02:55]} 7. Qe2
{[%clk 0:02:33.2]} 7... Bxc5 {[%clk 0:02:52.7]} 8. e5 {[%clk 0:02:31.2]} 8...
Ng4 {[%clk 0:02:01.5]} 9. O-O {[%clk 0:02:29.5]} 9... Qc7 {[%clk 0:02:01.9]} 10.
Nb3 {[%clk 0:02:25.6]} 10... Bb6 {[%clk 0:02:02]} 11. Bf4 {[%clk 0:02:21]} 11...
f6 {[%clk 0:01:55.8]} 12. Bg3 {[%clk 0:01:56.2]} 12... Ngxe5 {[%clk 0:01:50.2]}
13. Nxe5 {[%clk 0:01:53.6]} 13... fxe5 {[%clk 0:01:45.6]} 14. a4 {[%clk
0:01:49]} 14... a6 {[%clk 0:01:43.1]} 15. a5 {[%clk 0:01:46.6]} 15... Ba7 {[%clk
0:01:42.9]} 16. Rae1 {[%clk 0:01:36.9]} 16... O-O {[%clk 0:01:41.5]} 17. Kh1
{[%clk 0:01:17]} 17... Qf7 {[%clk 0:01:29.8]} 18. f3 {[%clk 0:01:13.5]} 18...
Bd7 {[%clk 0:01:20.5]} 19. Bxe5 {[%clk 0:01:12.5]} 19... Nxe5 {[%clk 0:01:20.6]}
20. Qxe5 {[%clk 0:01:13.4]} 20... Bb8 {[%clk 0:01:18.5]} 21. Qg5 {[%clk
0:01:12.1]} 21... Bf4 {[%clk 0:01:12.1]} 22. Qh4 {[%clk 0:01:11.2]} 22... g6
{[%clk 0:00:56.9]} 23. Nc5 {[%clk 0:01:08]} 23... Bc8 {[%clk 0:00:57]} 24. b4
{[%clk 0:01:00]} 24... Bd2 {[%clk 0:00:42.9]} 25. Re2 {[%clk 0:00:55.4]} 25...
Bc3 {[%clk 0:00:38.8]} 26. Na4 {[%clk 0:00:31.2]} 26... Rb8 {[%clk 0:00:29.8]}
27. Nxc3 {[%clk 0:00:30.7]} 27... Bd7 {[%clk 0:00:28]} 28. Nd1 {[%clk
0:00:24.9]} 28... Rbc8 {[%clk 0:00:24.7]} 29. Nf2 {[%clk 0:00:24.5]} 29... Qg7
{[%clk 0:00:24.5]} 30. Ng4 {[%clk 0:00:24.2]} 30... Rf4 {[%clk 0:00:18.3]} 31.
Nh6+ {[%clk 0:00:22.9]} 1-0

[Event "Early-Titled-Tuesday-Blitz-May-14-2024"]
[Site "Chess.com"]
[Date "2024.05.14"]
[Round "7"]
[White "TomLiu777"]
[Black "balack95"]
[Result "0-1"]
[WhiteElo "2281"]
[BlackElo "2516"]
[TimeControl "180+1"]
[EndTime "9:19:21 PDT"]
[Termination "balack95 won by checkmate"]

1. Nf3 {[%clk 0:02:59.6]} 1... d5 {[%clk 0:02:59.9]} 2. g3 {[%clk 0:02:57.8]}
2... Nd7 {[%clk 0:03:00.3]} 3. Bg2 {[%clk 0:02:58.2]} 3... e5 {[%clk 0:03:00.8]}
4. O-O {[%clk 0:02:58.8]} 4... Ngf6 {[%clk 0:03:01.3]} 5. d3 {[%clk 0:02:59.6]}
5... Bd6 {[%clk 0:03:01.8]} 6. Nbd2 {[%clk 0:02:58.2]} 6... O-O {[%clk
0:03:01.4]} 7. e4 {[%clk 0:02:53.6]} 7... c6 {[%clk 0:03:01.2]} 8. c3 {[%clk
0:02:48.8]} 8... Re8 {[%clk 0:03:00.9]} 9. Re1 {[%clk 0:02:47.3]} 9... Qc7
{[%clk 0:03:01.2]} 10. Nf1 {[%clk 0:02:39.6]} 10... Nf8 {[%clk 0:03:01.2]} 11.
Qc2 {[%clk 0:02:26.7]} 11... a5 {[%clk 0:02:59.9]} 12. Bd2 {[%clk 0:02:25.8]}
12... a4 {[%clk 0:02:59.4]} 13. Ne3 {[%clk 0:02:24.3]} 13... Ng6 {[%clk
0:02:54.2]} 14. Rad1 {[%clk 0:02:23.1]} 14... h6 {[%clk 0:02:42.6]} 15. Bc1
{[%clk 0:02:14.9]} 15... Be6 {[%clk 0:02:42.4]} 16. Nf5 {[%clk 0:02:13.8]} 16...
Bxf5 {[%clk 0:02:40.7]} 17. exf5 {[%clk 0:02:14.7]} 17... Ne7 {[%clk 0:02:41.1]}
18. Nh4 {[%clk 0:02:11.2]} 18... Ra5 {[%clk 0:02:27.5]} 19. d4 {[%clk 0:01:52]}
19... e4 {[%clk 0:02:22.6]} 20. f3 {[%clk 0:01:50.4]} 20... exf3 {[%clk
0:02:11.7]} 21. Nxf3 {[%clk 0:01:51.3]} 21... Raa8 {[%clk 0:02:09.4]} 22. Ne5
{[%clk 0:01:49.7]} 22... Nd7 {[%clk 0:02:01.6]} 23. Nxd7 {[%clk 0:01:46.7]}
23... Qxd7 {[%clk 0:02:00.9]} 24. f6 {[%clk 0:01:46.9]} 24... Ng6 {[%clk
0:01:57.4]} 25. fxg7 {[%clk 0:01:43.5]} 25... Kxg7 {[%clk 0:01:57.8]} 26. Qd2
{[%clk 0:01:42.9]} 26... Rh8 {[%clk 0:01:49.4]} 27. Rf1 {[%clk 0:01:41.5]} 27...
Be7 {[%clk 0:01:47.6]} 28. h4 {[%clk 0:01:38.2]} 28... Qg4 {[%clk 0:01:43.9]}
29. Qf2 {[%clk 0:01:37.5]} 29... Raf8 {[%clk 0:01:41]} 30. Rde1 {[%clk
0:01:35.1]} 30... Bd6 {[%clk 0:01:40.7]} 31. Qf6+ {[%clk 0:01:32.7]} 31... Kg8
{[%clk 0:01:41.4]} 32. Rf3 {[%clk 0:01:15.9]} 32... Bxg3 {[%clk 0:01:34.6]} 33.
Ref1 {[%clk 0:01:15.4]} 33... Rh7 {[%clk 0:01:30.8]} 34. b3 {[%clk 0:01:02]}
34... Bxh4 {[%clk 0:01:30.8]} 35. Qd6 {[%clk 0:00:59.6]} 35... axb3 {[%clk
0:01:22.8]} 36. axb3 {[%clk 0:00:58.6]} 36... Bg5 {[%clk 0:01:19.9]} 37. Ba3
{[%clk 0:00:57.7]} 37... Rg7 {[%clk 0:01:16.3]} 38. Qh2 {[%clk 0:00:40.4]} 38...
Re8 {[%clk 0:01:14.7]} 39. Qc7 {[%clk 0:00:27]} 39... Be3+ {[%clk 0:01:06]} 40.
Kh1 {[%clk 0:00:20.6]} 40... Nh4 {[%clk 0:00:58]} 41. Bh3 {[%clk 0:00:20.6]}
41... Qg1+ {[%clk 0:00:49]} 42. Rxg1 {[%clk 0:00:17.9]} 42... Rxg1+ {[%clk
0:00:49.9]} 43. Kh2 {[%clk 0:00:18.1]} 43... Nxf3# {[%clk 0:00:50.8]} 0-1

[Event "Early-Titled-Tuesday-Blitz-May-14-2024"]
[Site "Chess.com"]
[Date "2024.05.14"]
[Round "7"]
[White "OparinGrigoriy"]
[Black "Firouzja2003"]
[Result "0-1"]
[WhiteElo "2982"]
[BlackElo "3188"]
[TimeControl "180+1"]
[EndTime "9:19:24 PDT"]
[Termination "Firouzja2003 won by resignation"]

1. d4 {[%clk 0:03:00.9]} 1... Nf6 {[%clk 0:02:59.8]} 2. c4 {[%clk 0:03:01.5]}
2... g6 {[%clk 0:02:59.9]} 3. Nc3 {[%clk 0:03:00.7]} 3... Bg7 {[%clk 0:03:00.5]}
4. e4 {[%clk 0:03:01.3]} 4... d6 {[%clk 0:03:01.2]} 5. h3 {[%clk 0:03:00.8]}
5... O-O {[%clk 0:03:00.6]} 6. Bg5 {[%clk 0:03:01.1]} 6... c5 {[%clk 0:02:52.7]}
7. d5 {[%clk 0:03:00.9]} 7... e6 {[%clk 0:02:43.2]} 8. Bd3 {[%clk 0:02:59.4]}
8... Qb6 {[%clk 0:02:38.4]} 9. Qd2 {[%clk 0:02:53.5]} 9... exd5 {[%clk
0:02:35.3]} 10. cxd5 {[%clk 0:02:53.3]} 10... Re8 {[%clk 0:02:35.5]} 11. Nge2
{[%clk 0:02:49.6]} 11... Nbd7 {[%clk 0:02:35.5]} 12. O-O {[%clk 0:02:45]} 12...
Ne5 {[%clk 0:02:35.7]} 13. Bb5 {[%clk 0:02:26.9]} 13... Bd7 {[%clk 0:02:18]} 14.
Bxd7 {[%clk 0:02:26.4]} 14... Nfxd7 {[%clk 0:02:17.3]} 15. b3 {[%clk 0:02:23.3]}
15... Qa6 {[%clk 0:02:06.1]} 16. f4 {[%clk 0:02:05.1]} 16... Nd3 {[%clk
0:02:05]} 17. Rad1 {[%clk 0:02:03.7]} 17... c4 {[%clk 0:02:03.7]} 18. bxc4
{[%clk 0:01:56.9]} 18... N7c5 {[%clk 0:02:03.9]} 19. e5 {[%clk 0:01:46.2]} 19...
Qxc4 {[%clk 0:01:51.7]} 20. Rf3 {[%clk 0:01:34.4]} 20... h6 {[%clk 0:01:45.1]}
21. Bh4 {[%clk 0:01:32.5]} 21... Nxe5 {[%clk 0:01:42.9]} 22. fxe5 {[%clk
0:01:25.2]} 22... Qxh4 {[%clk 0:01:43]} 23. exd6 {[%clk 0:01:24.7]} 23... Rad8
{[%clk 0:01:42.3]} 24. Rdf1 {[%clk 0:01:02.4]} 24... f5 {[%clk 0:01:42]} 25. Nf4
{[%clk 0:01:01.2]} 25... Rxd6 {[%clk 0:01:23.3]} 26. Nb5 {[%clk 0:00:53.7]}
26... Rd7 {[%clk 0:01:07.1]} 27. d6 {[%clk 0:00:51.2]} 27... Ne4 {[%clk
0:00:27.4]} 28. Qd5+ {[%clk 0:00:50.7]} 28... Kh7 {[%clk 0:00:27.4]} 29. Nxg6
{[%clk 0:00:51.1]} 29... Qf6 {[%clk 0:00:28.1]} 30. Ne7 {[%clk 0:00:31.9]} 30...
Rexe7 {[%clk 0:00:27.9]} 31. dxe7 {[%clk 0:00:31.8]} 31... Rxd5 {[%clk
0:00:28.2]} 32. e8=Q {[%clk 0:00:32.2]} 32... Qb6+ {[%clk 0:00:28.9]} 33. Kh1
{[%clk 0:00:19]} 33... Qxb5 {[%clk 0:00:28.1]} 34. Qf7 {[%clk 0:00:19.3]} 34...
Qd7 {[%clk 0:00:28]} 35. Qh5 {[%clk 0:00:16.8]} 35... f4 {[%clk 0:00:22.3]} 36.
Qh4 {[%clk 0:00:13.9]} 36... Ng3+ {[%clk 0:00:22.1]} 37. Rxg3 {[%clk 0:00:14.5]}
37... fxg3 {[%clk 0:00:23]} 38. Qxg3 {[%clk 0:00:14.5]} 38... Rd1 {[%clk
0:00:21.8]} 0-1